bitfinex/quotes_BTCUSD_20250330
["timestamp","ask_amount","ask_price","bid_price","bid_amount"]
[1743305304994,0.34996699,83598.0,83597.0,5e-07]
[1743305307995,0.36872155,83598.0,83597.0,5e-07]
[1743305308206,0.34996699,83598.0,83597.0,5e-07]
[1743305312506,0.36872161,83598.0,83597.0,5e-07]
[1743305312749,0.34996699,83598.0,83597.0,5e-07]
[1743305319055,0.36872195,83598.0,83597.0,5e-07]
[1743305320312,0.34996699,83598.0,83597.0,5e-07]
[1743305323834,0.457851,83598.0,83597.0,5e-07]
[1743305324185,0.47660594,83598.0,83597.0,5e-07]
[1743305324833,0.457851,83598.0,83597.0,5e-07]
[1743305326329,0.457451,83598.0,83597.0,5e-07]
[1743305327922,0.47620606,83598.0,83597.0,5e-07]
[1743305328214,0.457451,83598.0,83597.0,5e-07]
[1743305328716,0.34956699,83598.0,83597.0,5e-07]
[1743305333018,0.36832201,83598.0,83597.0,5e-07]
[1743305333424,0.34956699,83598.0,83597.0,5e-07]
[1743305338816,0.36832197,83598.0,83597.0,5e-07]
[1743305339932,0.34956699,83598.0,83597.0,5e-07]
[1743305341941,0.55124,83585.0,83584.0,0.07277601]
[1743305343150,0.55124,83585.0,83584.0,0.07477601]
[1743305344395,0.55124,83585.0,83584.0,0.07577601]
[1743305346198,0.55124,83585.0,83584.0,0.003]
[1743305349429,0.56295097,83585.0,83584.0,0.003]
[1743305349845,0.56295097,83585.0,83584.0,0.001]
[1743305350845,0.56295097,83585.0,83582.0,0.0492]
[1743305350846,0.251247,83583.0,83582.0,0.0492]
[1743305351089,0.551247,83583.0,83582.0,0.0492]
[1743305352038,0.551247,83583.0,83582.0,0.0522]
[1743305352484,0.551247,83583.0,83582.0,0.0532]
[1743305353800,0.551247,83583.0,83582.0,0.004]
[1743305356521,0.58611849,83583.0,83582.0,0.004]
[1743305357248,0.58611849,83583.0,83582.0,0.001]
[1743305357448,0.551252,83581.0,83580.0,0.0003372]
[1743305359235,0.551252,83581.0,83580.0,0.0013372]
[1743305360849,0.58609888,83581.0,83580.0,0.0013372]
[1743305364570,0.551252,83581.0,83580.0,0.0013372]
[1743305365137,0.58608101,83581.0,83580.0,0.0013372]
[1743305365517,0.551252,83581.0,83580.0,0.0013372]
[1743305367214,0.551252,83581.0,83580.0,0.0003372]
[1743305367612,0.552252,83581.0,83580.0,0.0003372]
[1743305367972,0.57100913,83581.0,83580.0,0.0003372]
[1743305368431,0.552252,83581.0,83580.0,0.0003372]
[1743305377788,0.551252,83581.0,83580.0,0.0003372]
[1743305378221,0.554252,83581.0,83580.0,0.0003372]
[1743305378415,0.56775705,83581.0,83580.0,0.0003372]
[1743305378625,0.554252,83581.0,83580.0,0.0003372]
[1743305379095,0.552252,83581.0,83580.0,0.0003372]
[1743305379210,0.554252,83581.0,83580.0,0.0003372]
[1743305380068,0.553252,83581.0,83580.0,0.0003372]
[1743305380227,0.56675705,83581.0,83580.0,0.0003372]
[1743305380432,0.554252,83581.0,83580.0,0.0003372]
[1743305381712,0.58906591,83581.0,83580.0,0.0003372]
[1743305384053,0.58906591,83581.0,83580.0,2e-07]
[1743305384555,0.60782335,83581.0,83580.0,2e-07]
[1743305384980,0.59406591,83581.0,83580.0,2e-07]
[1743305385153,0.394865,83573.0,83572.0,8e-07]
[1743305385354,0.56311891,83573.0,83572.0,8e-07]
[1743305386665,0.56611891,83573.0,83572.0,8e-07]
[1743305387063,0.57211891,83573.0,83572.0,8e-07]
[1743305387314,0.48921891,83573.0,83572.0,8e-07]
[1743305387488,0.49221891,83573.0,83572.0,8e-07]
[1743305388010,0.51097906,83573.0,83572.0,8e-07]
[1743305388420,0.48821891,83573.0,83572.0,8e-07]
[1743305388818,0.49121891,83573.0,83572.0,8e-07]
[1743305389217,0.35277891,83573.0,83572.0,8e-07]
[1743305389401,0.79021891,83573.0,83572.0,8e-07]
[1743305391922,0.81445092,83573.0,83572.0,8e-07]
[1743305392348,1.38461092,83573.0,83572.0,8e-07]
[1743305392562,1.40337098,83573.0,83572.0,8e-07]
[1743305392784,1.40305098,83573.0,83572.0,8e-07]
[1743305394392,1.38429092,83573.0,83572.0,8e-07]
[1743305398464,1.46239092,83573.0,83572.0,8e-07]
[1743305399382,1.45939092,83573.0,83572.0,8e-07]
[1743305399673,1.46039092,83573.0,83572.0,8e-07]
[1743305400168,1.45639092,83573.0,83572.0,8e-07]
[1743305400581,1.38529092,83573.0,83572.0,8e-07]
[1743305401007,1.25185092,83573.0,83572.0,8e-07]
[1743305401185,1.08129092,83573.0,83572.0,8e-07]
[1743305401342,0.76964592,83573.0,83572.0,8e-07]
[1743305401551,0.74679701,83573.0,83572.0,8e-07]
[1743305403457,1.04679701,83573.0,83572.0,8e-07]
[1743305404222,1.06555677,83573.0,83572.0,8e-07]
[1743305405173,1.04679701,83573.0,83572.0,8e-07]
[1743305408013,0.91335701,83573.0,83572.0,8e-07]
[1743305408729,0.91352571,83573.0,83572.0,8e-07]
[1743305411565,0.94836526,83573.0,83572.0,8e-07]
[1743305417406,0.92413325,83573.0,83572.0,8e-07]
[1743305417609,0.8892937,83573.0,83572.0,8e-07]
[1743305418913,0.92415476,83573.0,83572.0,8e-07]
[1743305419333,0.8892937,83573.0,83572.0,8e-07]
[1743305419715,0.92415753,83573.0,83572.0,8e-07]
[1743305420755,0.8892937,83573.0,83572.0,8e-07]
[1743305421913,0.8852937,83573.0,83572.0,8e-07]
[1743305422113,0.8822937,83573.0,83572.0,8e-07]
[1743305422313,0.8882937,83573.0,83572.0,8e-07]
[1743305423586,0.90705357,83573.0,83572.0,8e-07]
[1743305424011,0.8882937,83573.0,83572.0,8e-07]
[1743305431292,0.90705233,83573.0,83572.0,8e-07]
[1743305431490,0.90105233,83573.0,83572.0,8e-07]
[1743305431706,0.90605233,83573.0,83572.0,8e-07]
[1743305432251,0.8872937,83573.0,83572.0,8e-07]
[1743305433314,0.8852937,83573.0,83572.0,8e-07]
[1743305434416,0.8822937,83573.0,83572.0,8e-07]
[1743305434835,0.8852937,83573.0,83572.0,8e-07]
[1743305435195,0.8872937,83573.0,83572.0,8e-07]
[1743305435405,0.90605249,83573.0,83572.0,8e-07]
[1743305435609,0.3171337,83573.0,83572.0,8e-07]
[1743305436230,0.3171337,83573.0,83572.0,0.0832008]
[1743305436455,0.3151337,83573.0,83572.0,0.0832008]
[1743305436812,0.3171337,83573.0,83572.0,0.0832008]
[1743305437455,0.3141337,83573.0,83572.0,0.0832008]
[1743305437885,0.3171337,83573.0,83572.0,0.0832008]
[1743305438975,0.33589221,83573.0,83572.0,0.0832008]
[1743305439572,0.33389221,83573.0,83572.0,0.0832008]
[1743305439899,0.3171337,83573.0,83572.0,0.0832008]
[1743305440446,0.3141337,83573.0,83572.0,0.0832008]
[1743305440854,0.3161337,83573.0,83572.0,0.0832008]
[1743305441259,0.3161337,83573.0,83572.0,8e-07]
[1743305442796,0.3111337,83573.0,83572.0,8e-07]
[1743305449921,0.3091337,83573.0,83572.0,8e-07]
[1743305450329,0.3101337,83573.0,83572.0,8e-07]
[1743305450866,0.3081337,83573.0,83572.0,8e-07]
[1743305451343,0.3101337,83573.0,83572.0,8e-07]
[1743305457059,0.34500461,83573.0,83572.0,8e-07]
[1743305459808,0.551313,83561.0,83543.0,0.0495]
[1743305460052,0.551313,83561.0,83528.0,0.16333463]
[1743305460053,1.10158391,83561.0,83560.0,4e-07]
[1743305460289,1.10158391,83561.0,83533.0,0.0764]
[1743305460290,0.551349,83549.0,83533.0,0.0764]
[1743305460547,0.58621991,83549.0,83533.0,0.0764]
[1743305461264,0.58621991,83549.0,83548.0,0.00080965]
[1743305462447,0.552349,83549.0,83548.0,0.00080965]
[1743305463192,0.5611338,83549.0,83548.0,0.00080965]
[1743305466837,0.5601338,83549.0,83548.0,0.00080965]
[1743305467282,0.5631338,83549.0,83548.0,0.00080965]
[1743305468754,0.5651338,83549.0,83548.0,0.00080965]
[1743305469192,0.5601338,83549.0,83548.0,0.00080965]
[1743305469630,0.5658938,83549.0,83548.0,0.00080965]
[1743305469847,0.5628938,83549.0,83548.0,0.00080965]
[1743305470247,0.5668938,83549.0,83548.0,0.00080965]
[1743305472727,0.58565896,83549.0,83548.0,0.00080965]
[1743305475240,0.5668938,83549.0,83548.0,0.00080965]
[1743305477820,0.5668938,83549.0,83548.0,6.5e-07]
[1743305480230,1.1372138,83549.0,83548.0,6.5e-07]
[1743305482057,1.2134138,83549.0,83548.0,6.5e-07]
[1743305482497,1.23217907,83549.0,83548.0,6.5e-07]
[1743305485216,1.2134138,83549.0,83548.0,6.5e-07]
[1743305487934,1.2134138,83549.0,83548.0,0.00033805]
[1743305488135,1.1373825,83549.0,83548.0,0.00033805]
[1743305489442,1.17217725,83549.0,83548.0,0.00033805]
[1743305494188,1.19094233,83549.0,83548.0,0.00033805]
[1743305495159,1.17217725,83549.0,83548.0,0.00033805]
[1743305497229,1.30561725,83549.0,83548.0,0.00033805]
[1743305498711,1.30561725,83549.0,83548.0,5e-08]
[1743305499744,0.55137,83542.0,83541.0,0.00196005]
[1743305499951,0.58616475,83542.0,83541.0,0.00206737]
[1743305500977,0.68716475,83542.0,83541.0,3.7e-07]
[1743305501559,0.68916475,83542.0,83541.0,3.7e-07]
[1743305501780,0.68716475,83542.0,83541.0,3.7e-07]
[1743305502191,0.69516475,83542.0,83541.0,3.7e-07]
[1743305502393,0.69216475,83542.0,83541.0,3.7e-07]
[1743305502609,0.70993211,83542.0,83541.0,3.7e-07]
[1743305502909,0.71393211,83542.0,83541.0,3.7e-07]
[1743305503688,0.71593211,83542.0,83541.0,3.7e-07]
[1743305504061,0.71393211,83542.0,83541.0,3.7e-07]
[1743305504458,0.71693211,83542.0,83541.0,3.7e-07]
[1743305505077,0.85037211,83542.0,83541.0,3.7e-07]
[1743305505543,0.251424,83524.0,83523.0,0.0466374]
[1743305505720,0.551424,83524.0,83523.0,0.0466374]
[1743305506263,0.56370029,83524.0,83523.0,0.0466374]
[1743305508513,0.57262429,83524.0,83523.0,0.0466374]
[1743305510287,0.59643844,83524.0,83523.0,0.0466374]
[1743305510688,0.61520924,83524.0,83523.0,0.0466374]
[1743305510887,0.59643844,83524.0,83523.0,0.0003374]
[1743305511476,0.6313143,83524.0,83523.0,0.0003374]
[1743305513176,0.6333143,83524.0,83523.0,0.0003374]
[1743305513583,0.6313143,83524.0,83523.0,0.0003374]
[1743305514012,0.6520859,83524.0,83523.0,0.0003374]
[1743305514628,0.6550859,83524.0,83523.0,0.0003374]
[1743305515912,0.6363143,83524.0,83523.0,0.0003374]
[1743305517423,0.6363143,83524.0,83523.0,4e-07]
[1743305517619,0.551429,83522.0,83521.0,8e-07]
[1743305517849,0.58630486,83522.0,83521.0,8e-07]
[1743305519042,0.60507704,83522.0,83521.0,8e-07]
[1743305520014,0.58630486,83522.0,83521.0,8e-07]
[1743305520330,0.59130486,83522.0,83521.0,8e-07]
[1743305521128,0.556429,83522.0,83521.0,8e-07]
[1743305521489,0.860429,83522.0,83521.0,8e-07]
[1743305523766,0.860429,83522.0,83521.0,0.0831008]
[1743305524364,0.87920003,83522.0,83521.0,0.0831008]
[1743305524770,0.57520003,83522.0,83521.0,0.0831008]
[1743305524978,0.57520003,83522.0,83521.0,0.1322008]
[1743305525207,0.556429,83522.0,83521.0,0.1322008]
[1743305526015,0.554429,83522.0,83521.0,0.1322008]
[1743305526506,0.555429,83522.0,83521.0,0.1322008]
[1743305526715,0.552429,83522.0,83521.0,0.1322008]
[1743305527155,0.554429,83522.0,83521.0,0.1322008]
[1743305527356,0.003,83522.0,83521.0,0.1322008]
[1743305527564,0.003,83522.0,83521.0,0.14462475]
[1743305528097,0.542457,83522.0,83521.0,0.14462475]
[1743305528506,0.303,83522.0,83521.0,0.14462475]
[1743305528725,0.314972,83522.0,83521.0,0.1322008]
[1743305529124,0.314972,83522.0,83521.0,0.14462475]
[1743305529380,0.302,83522.0,83521.0,0.38620165]
[1743305529583,0.302,83522.0,83521.0,0.39817465]
[1743305529746,0.002,83522.0,83521.0,0.4105986]
[1743305529940,0.0001688,83523.0,83522.0,0.15511285]
[1743305530186,0.0001688,83523.0,83522.0,0.28755285]
[1743305530784,0.0001688,83523.0,83522.0,0.2999768]
[1743305534717,0.0001688,83523.0,83522.0,0.46331143]
[1743305536472,0.00014152,83542.0,83540.0,0.39451685]
[1743305536685,0.00014152,83542.0,83540.0,0.69129148]
[1743305536902,0.00014152,83542.0,83540.0,0.70360662]
[1743305539538,0.00014152,83542.0,83540.0,0.70660662]
[1743305552643,0.21773589,83550.0,83541.0,0.26591185]
[1743305552963,0.21773589,83550.0,83543.0,0.01454085]
[1743305553405,0.011969,83547.0,83543.0,0.01454085]
[1743305553603,0.011969,83547.0,83545.0,0.01454085]
[1743305553919,0.28678136,83551.0,83545.0,0.01454085]
[1743305554120,0.239377,83550.0,83546.0,0.01225018]
[1743305554340,0.251342,83551.0,83547.0,0.01454085]
[1743305554484,0.011968,83556.0,83547.0,0.01454085]
[1743305554775,0.011968,83556.0,83546.0,0.01454085]
[1743305554970,0.011968,83556.0,83549.0,0.01454085]
[1743305555372,0.011968,83556.0,83541.0,0.01197]
[1743305555373,0.251342,83551.0,83550.0,0.01225018]
[1743305555742,0.251342,83551.0,83540.0,0.16333463]
[1743305555950,0.251342,83551.0,83527.0,0.16333463]
[1743305555951,0.011972,83528.0,83527.0,0.16333463]
[1743305556328,0.011972,83528.0,83527.0,0.17553647]
[1743305556529,0.311972,83528.0,83527.0,0.16333463]
[1743305557304,0.311972,83528.0,83527.0,0.16433463]
[1743305557516,0.311972,83528.0,83527.0,0.16333463]
[1743305557909,0.311972,83528.0,83527.0,0.16533463]
[1743305558309,0.311972,83528.0,83527.0,0.16433463]
[1743305558741,0.311972,83528.0,83527.0,0.16533463]
[1743305559281,0.311972,83528.0,83527.0,0.16433463]
[1743305560108,0.311972,83528.0,83527.0,0.16467203]
[1743305560311,0.311972,83528.0,83527.0,0.16367203]
[1743305560741,0.312972,83528.0,83527.0,0.16367203]
[1743305560947,0.312972,83528.0,83527.0,0.0003374]
[1743305564630,0.311972,83528.0,83527.0,0.0003374]
[1743305565866,0.312972,83528.0,83527.0,0.0003374]
[1743305568260,0.001,83528.0,83527.0,0.0003374]
[1743305568462,0.301,83528.0,83527.0,0.01514511]
[1743305568667,0.312972,83528.0,83527.0,0.01275072]
[1743305568868,0.312972,83528.0,83527.0,0.0003374]
[1743305569508,0.311972,83528.0,83527.0,0.0003374]
[1743305569838,0.311972,83528.0,83527.0,0.0013374]
[1743305570457,0.551412,83528.0,83527.0,0.0013374]
[1743305580689,0.3,83528.0,83527.0,0.0013374]
[1743305581040,0.3,83528.0,83527.0,0.01369799]
[1743305581240,0.3,83528.0,83527.0,0.0013374]
[1743305581417,0.3,83528.0,83527.0,0.01369799]
[1743305581625,0.3,83528.0,83527.0,0.0013374]
[1743305581942,0.3,83528.0,83527.0,0.01369799]
[1743305582523,0.551412,83528.0,83527.0,0.01369799]
[1743305582708,0.551412,83528.0,83527.0,0.0013374]
[1743305589877,0.3,83528.0,83527.0,0.02258259]
[1743305590290,0.3,83528.0,83527.0,0.01368503]
[1743305590613,0.311972,83528.0,83527.0,0.01368503]
[1743305590817,0.3,83528.0,83527.0,0.02822588]
[1743305591014,0.551412,83528.0,83527.0,0.01587825]
[1743305591217,0.551412,83528.0,83527.0,0.02822588]
[1743305592892,0.551412,83528.0,83527.0,0.01368503]
[1743305593493,0.551412,83528.0,83527.0,0.0013374]
[1743305602108,0.58627818,83528.0,83527.0,0.0013374]
[1743305603068,0.58627818,83528.0,83527.0,0.0003374]
[1743305603402,0.58727818,83528.0,83527.0,0.0003374]
[1743305606564,0.61123574,83528.0,83527.0,0.0003374]
[1743305608525,0.69423574,83528.0,83527.0,0.0003374]
[1743305609316,0.69323574,83528.0,83527.0,0.0003374]
[1743305609701,0.69423574,83528.0,83527.0,0.0003374]
[1743305612588,0.74463574,83528.0,83527.0,0.0003374]
[1743305612789,0.58727818,83528.0,83527.0,0.0003374]
[1743305613638,0.552412,83528.0,83527.0,0.0003374]
[1743305614475,0.58726932,83528.0,83527.0,0.0003374]
[1743305628688,0.60604041,83528.0,83527.0,0.0003374]
[1743305629741,0.58726932,83528.0,83527.0,0.0003374]
[1743305630893,0.58726932,83528.0,83522.0,0.0003376]
[1743305631078,0.551493,83501.0,83500.0,4e-07]
[1743305631280,0.855493,83501.0,83500.0,4e-07]
[1743305632019,0.86761047,83501.0,83500.0,4e-07]
[1743305632493,0.86775205,83501.0,83500.0,4e-07]
[1743305634502,0.86775205,83501.0,83500.0,0.0010004]
[1743305636656,0.86775205,83501.0,83500.0,4e-07]
[1743305636936,0.86775205,83501.0,83500.0,0.0010004]
[1743305637499,0.87681929,83501.0,83500.0,0.0010004]
[1743305638615,0.56375205,83501.0,83500.0,0.0010004]
[1743305638859,0.01225905,83501.0,83500.0,0.0829004]
[1743305639070,0.26375205,83501.0,83500.0,0.0829004]
[1743305639294,0.26375205,83501.0,83500.0,0.09329197]
[1743305639520,0.01225905,83501.0,83500.0,0.14484125]
[1743305639753,0.01225905,83501.0,83500.0,0.15523282]
[1743305640260,0.26375205,83501.0,83500.0,0.31856745]
[1743305641409,0.02423405,83501.0,83500.0,0.31856745]
[1743305642108,0.01225905,83501.0,83500.0,0.31856745]
[1743305642991,0.02423405,83501.0,83500.0,0.31856745]
[1743305643193,0.01225905,83501.0,83500.0,0.31856745]
[1743305643404,0.56375205,83501.0,83500.0,0.31856745]
[1743305644403,0.56375205,83501.0,83500.0,0.1747266]
[1743305644814,0.56375205,83501.0,83500.0,0.16433503]
[1743305645016,0.56375205,83501.0,83500.0,0.1747266]
[1743305652461,0.56392075,83501.0,83500.0,0.1747266]
[1743305654658,0.30031028,83501.0,83500.0,0.18926745]
[1743305654896,0.30031028,83501.0,83500.0,0.26786745]
[1743305655562,0.55180328,83501.0,83500.0,0.26786745]
[1743305658934,0.30031028,83501.0,83500.0,0.26786745]
[1743305659541,0.30031028,83501.0,83500.0,0.56636345]
[1743305660015,0.30031028,83501.0,83500.0,0.31486745]
[1743305660962,0.31228528,83501.0,83500.0,0.31486745]
[1743305661614,0.31228528,83501.0,83500.0,0.30447588]
[1743305662029,0.31228528,83501.0,83500.0,0.31491825]
[1743305663044,0.31228528,83501.0,83500.0,0.1747774]
[1743305663250,0.31228528,83501.0,83500.0,0.16433503]
[1743305666659,0.31228528,83501.0,83500.0,0.0010004]
[1743305666858,0.39188528,83501.0,83500.0,0.0010004]
[1743305667752,0.39188528,83501.0,83500.0,4e-07]
[1743305668253,0.39188528,83501.0,83500.0,0.0010004]
[1743305671139,0.3471914,83501.0,83500.0,0.0010004]
[1743305671725,0.31228528,83501.0,83500.0,0.0010004]
[1743305673754,0.33106156,83501.0,83500.0,0.0010004]
[1743305675468,0.31228528,83501.0,83500.0,0.0010004]
[1743305678271,0.33096159,83501.0,83500.0,0.0010004]
[1743305678702,0.31218528,83501.0,83500.0,0.0010004]
[1743305686687,0.31218528,83501.0,83500.0,4e-07]
[1743305687128,0.39348528,83501.0,83500.0,4e-07]
[1743305687506,0.39448528,83501.0,83500.0,4e-07]
[1743305688868,0.41326181,83501.0,83500.0,4e-07]
[1743305689068,0.44816652,83501.0,83500.0,4e-07]
[1743305689305,0.42938999,83501.0,83500.0,4e-07]
[1743305689507,0.42838999,83501.0,83500.0,4e-07]
[1743305689712,0.42938999,83501.0,83500.0,4e-07]
[1743305692697,0.34808999,83501.0,83500.0,4e-07]
[1743305693649,0.36686664,83501.0,83500.0,4e-07]
[1743305695344,0.34808999,83501.0,83500.0,4e-07]
[1743305698474,0.36686693,83501.0,83500.0,4e-07]
[1743305698673,0.34808999,83501.0,83500.0,4e-07]
[1743305699034,0.0131437,83501.0,83500.0,4e-07]
[1743305701121,0.3131437,83501.0,83500.0,4e-07]
[1743305703010,0.46261721,83501.0,83500.0,4e-07]
[1743305704163,0.251505,83497.0,83496.0,0.0003374]
[1743305705347,0.27028242,83497.0,83496.0,0.0003374]
[1743305705571,0.551505,83497.0,83496.0,0.0003374]
[1743305706395,0.551505,83497.0,83496.0,0.0013374]
[1743305709245,0.58645768,83497.0,83496.0,0.0013374]
[1743305709978,0.61937971,83497.0,83496.0,0.0013374]
[1743305710205,0.58645768,83497.0,83496.0,0.0013374]
[1743305710676,0.58645768,83497.0,83496.0,0.0003374]
[1743305710906,0.58745768,83497.0,83496.0,0.0003374]
[1743305711316,0.58945768,83497.0,83496.0,0.0003374]
[1743305711736,0.72289768,83497.0,83496.0,0.0003374]
[1743305713844,0.84953285,83497.0,83496.0,0.0003374]
[1743305715545,0.8307548,83497.0,83496.0,0.0003374]
[1743305718689,0.72289768,83497.0,83496.0,0.0003374]
[1743305721493,1.02689768,83497.0,83496.0,0.0003374]
[1743305723472,1.04567571,83497.0,83496.0,0.0003374]
[1743305724284,1.61639571,83497.0,83496.0,0.0003374]
[1743305724925,1.59761768,83497.0,83496.0,0.0003374]
[1743305727480,1.29361768,83497.0,83496.0,0.0003374]
[1743305728330,1.00716,83497.0,83496.0,0.0003374]
[1743305728634,1.019136,83497.0,83496.0,0.0003374]
[1743305728912,1.258665,83497.0,83496.0,0.0003374]
[1743305731417,1.27217005,83497.0,83496.0,0.0003374]
[1743305731627,1.258665,83497.0,83496.0,0.0003374]
[1743305732470,1.562665,83497.0,83496.0,0.0003374]
[1743305733905,0.991945,83497.0,83496.0,0.0003374]
[1743305734104,1.01072312,83497.0,83496.0,0.0003374]
[1743305734530,1.04568968,83497.0,83496.0,0.0003374]
[1743305735458,1.02691156,83497.0,83496.0,0.0003374]
[1743305743509,0.89347156,83497.0,83496.0,0.0003374]
[1743305744128,0.91224963,83497.0,83496.0,0.0003374]
[1743305744713,0.60824963,83497.0,83496.0,0.0003374]
[1743305744941,0.60858703,83497.0,83496.0,0.0003374]
[1743305745531,0.58980896,83497.0,83496.0,0.0003374]
[1743305749737,0.89380896,83497.0,83496.0,0.0003374]
[1743305750404,0.89380896,83497.0,83496.0,0.0456374]
[1743305753054,0.91258579,83497.0,83496.0,0.0456374]
[1743305754778,0.89380896,83497.0,83496.0,0.0456374]
[1743305759434,0.59380896,83497.0,83496.0,0.0456374]
[1743305759656,0.5588424,83497.0,83496.0,0.0456374]
[1743305761485,0.8588424,83497.0,83496.0,0.0456374]
[1743305762214,0.8588424,83497.0,83496.0,0.0003374]
[1743305764490,0.87761956,83497.0,83496.0,0.0003374]
[1743305765533,0.8588424,83497.0,83496.0,0.0003374]
[1743305766052,0.5548424,83497.0,83496.0,0.0003374]
[1743305771090,0.8588424,83497.0,83496.0,0.0003374]
[1743305773069,0.87762037,83497.0,83496.0,0.0003374]
[1743305774928,0.91257241,83497.0,83496.0,0.0003374]
[1743305775916,0.89379444,83497.0,83496.0,0.0003374]
[1743305778768,0.58979444,83497.0,83496.0,0.0003374]
[1743305780755,0.60857146,83497.0,83496.0,0.0003374]
[1743305781495,0.58979444,83497.0,83496.0,0.0003374]
[1743305783761,0.89379444,83497.0,83496.0,0.0003374]
[1743305785013,0.91257143,83497.0,83496.0,0.0003374]
[1743305785396,0.89379444,83497.0,83496.0,0.0003374]
[1743305786445,0.94379444,83497.0,83496.0,0.0003374]
[1743305793071,0.96257164,83497.0,83496.0,0.0003374]
[1743305795869,0.94379444,83497.0,83496.0,0.0003374]
[1743305796281,0.9088424,83497.0,83496.0,0.0003374]
[1743305796480,1.1422824,83497.0,83496.0,0.0003374]
[1743305796653,1.21018221,83497.0,83496.0,0.0003374]
[1743305797863,0.90618221,83497.0,83496.0,0.0003374]
[1743305797985,0.87326018,83497.0,83496.0,0.0003374]
[1743305799463,0.8920387,83497.0,83496.0,0.0003374]
[1743305800459,0.90554375,83497.0,83496.0,0.0003374]
[1743305800662,0.8920387,83497.0,83496.0,4e-07]
[1743305803147,1.1960387,83497.0,83496.0,4e-07]
[1743305805391,1.17726018,83497.0,83496.0,4e-07]
[1743305808881,1.19603905,83497.0,83496.0,4e-07]
[1743305809041,1.17726018,83497.0,83496.0,4e-07]
[1743305811943,1.74798018,83497.0,83496.0,4e-07]
[1743305813216,1.76675915,83497.0,83496.0,4e-07]
[1743305814213,1.46275915,83497.0,83496.0,4e-07]
[1743305815411,1.44398018,83497.0,83496.0,4e-07]
[1743305818816,1.46275883,83497.0,83496.0,4e-07]
[1743305819012,1.44398018,83497.0,83496.0,4e-07]
[1743305819151,1.74798018,83497.0,83496.0,4e-07]
[1743305822273,1.76675881,83497.0,83496.0,4e-07]
[1743305824717,1.74798018,83497.0,83496.0,4e-07]
[1743305827287,1.44398018,83497.0,83496.0,4e-07]
[1743305827943,1.74798018,83497.0,83496.0,4e-07]
[1743305828912,1.7667585,83497.0,83496.0,4e-07]
[1743305829263,1.74798018,83497.0,83496.0,4e-07]
[1743305829428,1.44398018,83497.0,83496.0,4e-07]
[1743305829837,1.74798018,83497.0,83496.0,4e-07]
[1743305832398,1.85598415,83497.0,83496.0,4e-07]
[1743305837559,1.74798018,83497.0,83496.0,4e-07]
[1743305839322,1.76675878,83497.0,83496.0,4e-07]
[1743305839563,1.74798018,83497.0,83496.0,4e-07]
[1743305840093,1.44398018,83497.0,83496.0,4e-07]
[1743305843635,1.46275877,83497.0,83496.0,4e-07]
[1743305844070,1.44398018,83497.0,83496.0,4e-07]
[1743305845092,1.74798018,83497.0,83496.0,4e-07]
[1743305846012,1.74798018,83497.0,83481.0,8e-07]
[1743305846013,0.25155,83482.0,83481.0,8e-07]
[1743305846225,0.551577,83473.0,83472.0,0.0456]
[1743305846438,0.855577,83473.0,83472.0,0.0456]
[1743305846836,0.89057633,83473.0,83472.0,0.0456]
[1743305847353,0.855577,83473.0,83472.0,0.0456]
[1743305847780,0.85562419,83473.0,83472.0,0.0456]
[1743305849201,0.85562419,83473.0,83472.0,0.0466]
[1743305849847,0.85562419,83473.0,83472.0,0.1264]
[1743305850051,0.86474962,83473.0,83472.0,0.1264]
[1743305859432,0.56074962,83473.0,83472.0,0.1265687]
[1743305880889,0.56074962,83473.0,83472.0,0.0011687]
[1743305882394,0.56074962,83473.0,83472.0,0.0001687]
[1743305882676,0.56174962,83473.0,83472.0,0.0001687]
[1743305883118,0.56174962,83473.0,83472.0,0.0769687]
[1743305884087,0.55262419,83473.0,83472.0,0.1232687]
[1743305884507,0.30104719,83473.0,83472.0,0.1232687]
[1743305884726,0.30104719,83473.0,83472.0,0.13780955]
[1743305884924,0.55262419,83473.0,83472.0,0.15343512]
[1743305885554,0.55162419,83473.0,83472.0,0.13780955]
[1743305885746,0.55162419,83473.0,83472.0,0.13880955]
[1743305886276,0.55162419,83473.0,83472.0,0.1242687]
[1743305888646,0.55162419,83473.0,83472.0,0.0011687]
[1743305895182,0.70362419,83473.0,83472.0,0.0011687]
[1743305895425,0.85562419,83473.0,83472.0,0.0011687]
[1743305895717,0.87988661,83473.0,83472.0,0.0011687]
[1743305895944,0.97988661,83473.0,83472.0,0.0011687]
[1743305898232,1.11332661,83473.0,83472.0,0.0011687]
[1743305904068,0.80932661,83473.0,83472.0,0.0011687]
[1743305906735,0.50932661,83473.0,83472.0,0.0011687]
[1743305909165,0.81332661,83473.0,83472.0,0.0011687]
[1743305912545,1.21332661,83473.0,83472.0,0.0011687]
[1743305913486,1.21332661,83473.0,83472.0,0.0001687]
[1743305913714,1.21532661,83473.0,83472.0,0.0001687]
[1743305913911,0.551584,83471.0,83470.0,4.7e-07]
[1743305914270,0.551584,83471.0,83450.0,0.0468]
[1743305914271,0.55164,83452.0,83450.0,0.0468]
[1743305916578,0.56356801,83452.0,83450.0,0.0468]
[1743305917412,0.56356801,83452.0,83451.0,0.0021686]
[1743305917854,0.67244814,83452.0,83451.0,6e-07]
[1743305919076,0.67344814,83452.0,83451.0,6e-07]
[1743305922676,0.97744814,83452.0,83451.0,6e-07]
[1743305923501,0.67344814,83452.0,83451.0,6e-07]
[1743305925814,0.69223675,83452.0,83451.0,6e-07]
[1743305926014,0.67344814,83452.0,83451.0,6e-07]
[1743305926594,0.57344814,83452.0,83451.0,6e-07]
[1743305927213,1.14440814,83452.0,83451.0,6e-07]
[1743305928414,1.44840814,83452.0,83451.0,6e-07]
[1743305928917,1.46719623,83452.0,83451.0,6e-07]
[1743305929351,1.58188814,83452.0,83451.0,6e-07]
[1743305930340,1.44840814,83452.0,83451.0,6e-07]
[1743305930533,1.44840814,83452.0,83451.0,0.0811006]
[1743305932081,0.87744814,83452.0,83451.0,0.0811006]
[1743305933420,0.89623519,83452.0,83451.0,0.0811006]
[1743305934263,0.59223519,83452.0,83451.0,0.0811006]
[1743305934889,0.59223519,83452.0,83451.0,0.1272006]
[1743305935931,0.57344814,83452.0,83451.0,0.1272006]
[1743305938992,0.59223502,83452.0,83451.0,0.1272006]
[1743305939429,0.57244814,83452.0,83451.0,0.1272006]
[1743305941381,0.57278554,83452.0,83451.0,0.1272006]
[1743305947228,0.011987,83422.0,83416.0,0.0003372]
[1743305947428,0.551731,83422.0,83421.0,0.01255992]
[1743305947748,0.3,83422.0,83421.0,0.0786]
[1743305948096,0.311987,83422.0,83421.0,0.1267]
[1743305948223,0.3241178,83422.0,83421.0,0.1267]
[1743305948654,0.32420816,83422.0,83421.0,0.1267]